bitfinex/quotes_SOLUSD_20260224
["timestamp","ask_amount","ask_price","bid_price","bid_amount"]
[1771939671730,45.6805753,76.619,76.591,0.5]
[1771939678145,45.6805753,76.619,76.586,0.5]
[1771939679350,13.05159294,76.619,76.591,0.5]
[1771939681164,45.67461404,76.629,76.591,0.5]
[1771939681640,5.03534825,76.62,76.591,0.5]
[1771939683844,45.6805753,76.619,76.591,0.5]
[1771939684657,13.05159294,76.619,76.592,0.5]
[1771939686056,32.62524921,76.628,76.592,0.5]
[1771939691552,13.04988972,76.629,76.601,0.5]
[1771939692065,52.18720868,76.648,76.611,0.5]
[1771939692450,5.03534825,76.65,76.62,5.03534825]
[1771939692658,5.03534825,76.67,76.631,0.5]
[1771939692965,32.61025527,76.663,76.631,0.5]
[1771939693568,5.03534825,76.66,76.631,0.5]
[1771939696370,45.65673957,76.659,76.631,0.5]
[1771939696565,0.46697691,76.649,76.61,5.03534825]
[1771939698572,0.46697691,76.647,76.611,0.47275778]
[1771939700469,45.66448346,76.646,76.611,0.47275778]
[1771939700776,0.46697691,76.645,76.611,0.47275778]
[1771939701468,0.46697691,76.645,76.621,0.47275778]
[1771939702269,0.46697691,76.645,76.61,5.03534825]
[1771939702667,0.46697691,76.643,76.61,5.03534825]
[1771939702860,0.46697691,76.639,76.587,32.64259022]
[1771939703068,45.66567506,76.644,76.587,32.64259022]
[1771939703069,0.46697691,76.629,76.59,5.03534825]
[1771939703262,0.46697691,76.629,76.575,32.64766344]
[1771939703586,0.46697691,76.629,76.59,5.03534825]
[1771939704476,0.46697691,76.629,76.591,0.46663001]
[1771939704682,45.6752101,76.628,76.591,0.46663001]
[1771939704986,0.46048573,76.619,76.591,0.46663001]
[1771939706667,0.49618886,76.617,76.591,0.46663001]
[1771939708683,0.49618886,76.615,76.591,0.46663001]
[1771939710589,45.68355652,76.614,76.587,0.45652219]
[1771939710770,0.49618886,76.613,76.587,0.45652219]
[1771939711287,0.49618886,76.613,76.59,5.49792245]
[1771939712086,0.49618886,76.613,76.59,0.45652219]
[1771939712785,0.49618886,76.611,76.584,0.45652219]
[1771939713087,0.49618886,76.589,76.55,0.1]
[1771939713280,0.49618886,76.589,76.56,5.14140026]
[1771939713585,0.49618886,76.579,76.55,0.1]
[1771939714670,0.49618886,76.579,76.55,18.20475615]
[1771939714988,0.49618886,76.577,76.55,5.14140026]
[1771939715184,0.49618886,76.577,76.55,0.1]
[1771939715368,0.49618886,76.577,76.55,5.14140026]
[1771939715563,13.05858079,76.578,76.551,0.45652219]
[1771939715885,13.05704623,76.587,76.571,0.45652219]
[1771939716391,0.49618886,76.586,76.56,5.04140026]
[1771939717381,0.49618886,76.584,76.55,0.1]
[1771939717570,0.49618886,76.584,76.55,5.14140026]
[1771939718416,5.04140026,76.58,76.55,0.1]
[1771939719205,0.49618886,76.579,76.55,0.1]
[1771939720200,103.9,76.612,76.561,0.21419785]
[1771939720201,45.70503277,76.578,76.561,0.21419785]
[1771939720384,0.49618886,76.577,76.555,0.21419785]
[1771939722970,46.20241534,76.576,76.555,0.21419785]
[1771939723782,13.55511071,76.576,76.555,0.21419785]
[1771939724485,13.05892185,76.576,76.555,0.21419785]
[1771939724687,13.55511071,76.576,76.555,0.21419785]
[1771939725798,0.49618886,76.575,76.555,0.21419785]
[1771939726293,13.05892185,76.576,76.55,0.1]
[1771939726294,0.49618886,76.569,76.55,0.1]
[1771939726492,0.49618886,76.559,76.518,0.31419785]
[1771939726706,45.70622648,76.576,76.493,32.68247329]
[1771939726707,0.5,76.529,76.493,32.68247329]
[1771939727090,0.5,76.527,76.501,13.07165296]
[1771939727280,0.5,76.527,76.503,13.07121332]
[1771939728380,13.06711269,76.528,76.503,13.07121332]
[1771939728976,0.5,76.527,76.49,5.04140026]
[1771939729200,0.5,76.527,76.484,32.68624565]
[1771939729595,0.5,76.527,76.49,5.04140026]
[1771939730303,0.5,76.537,76.505,13.0709227]
[1771939730802,13.06523471,76.539,76.512,0.22326464]
[1771939731191,32.6597428,76.547,76.513,13.06967443]
[1771939731386,32.6597428,76.547,76.514,0.22326464]
[1771939732690,0.49618886,76.546,76.514,0.22326464]
[1771939734804,32.6597428,76.547,76.513,13.06967443]
[1771939734805,0.5,76.544,76.513,12.3599563]
[1771939735199,13.56363256,76.549,76.513,12.3599563]
[1771939735795,13.06363256,76.549,76.513,12.3599563]
[1771939736400,52.23568742,76.576,76.513,12.3599563]
[1771939736401,13.06071609,76.566,76.54,5.04140026]
[1771939737007,0.5,76.569,76.511,13.07001607]
[1771939737203,0.5,76.559,76.52,5.04140026]
[1771939739207,0.5,76.557,76.521,13.06830804]
[1771939740289,0.5,76.549,76.517,13.06883743]
[1771939740610,0.5,76.549,76.511,13.07001607]
[1771939741402,0.5,76.547,76.51,0.2390544]
[1771939741601,0.5,76.539,76.51,0.2390544]
[1771939742596,0.5,76.547,76.511,13.07001607]
[1771939742917,0.5,76.547,76.52,5.04140026]
[1771939743417,0.5,76.547,76.511,45.74505626]
[1771939743600,0.5,76.545,76.511,45.74505626]
[1771939743927,13.0634251,76.55,76.52,5.04140026]
[1771939744216,0.5,76.549,76.52,5.04140026]
[1771939744592,0.5,76.549,76.51,0.2390544]
[1771939744919,0.5,76.529,76.511,13.07001607]
[1771939749699,13.06552219,76.538,76.512,0.47952508]
[1771939750815,39.28,76.609,76.521,0.47952508]
[1771939751004,5.04140026,76.57,76.521,0.47952508]
[1771939751202,5.04140026,76.57,76.53,5.04140026]
[1771939751408,5.04140026,76.57,76.531,0.47952508]
[1771939751815,45.71040499,76.569,76.531,0.47952508]
[1771939752019,0.49899865,76.568,76.531,0.47952508]
[1771939755517,45.71159898,76.567,76.531,0.47952508]
[1771939755847,0.49899865,76.559,76.532,0.47952508]
[1771939757030,0.49899865,76.564,76.532,0.47952508]
[1771939757332,0.49899865,76.564,76.533,0.47952508]
[1771939759035,0.49899865,76.559,76.535,0.47952508]
[1771939760831,0.49899865,76.557,76.532,0.2]
[1771939761019,0.49899865,76.539,76.514,0.47952508]
[1771939761224,5.04140026,76.53,76.51,0.2390544]
[1771939761920,4.84140026,76.54,76.51,0.2390544]
[1771939763123,0.49899865,76.538,76.51,0.2390544]
[1771939764531,0.47024835,76.536,76.51,0.70878494]
[1771939765839,5.52278086,76.53,76.51,0.70878494]
[1771939766420,0.4813806,76.536,76.511,0.4942926]
[1771939766934,0.4813806,76.553,76.513,0.4942926]
[1771939767122,5.52278086,76.54,76.513,0.4942926]
[1771939767324,52.24796886,76.558,76.513,0.4942926]
[1771939767325,0.4813806,76.546,76.513,0.4942926]
[1771939768234,5.04140026,76.55,76.51,5.28045466]
[1771939768235,0.4813806,76.544,76.515,0.4942926]
[1771939771547,0.4813806,76.542,76.516,13.069162]
[1771939771739,0.4813806,76.542,76.517,0.4942926]
[1771939774843,0.4813806,76.548,76.521,0.4942926]
[1771939775229,0.4813806,76.548,76.516,0.4942926]
[1771939775623,0.4813806,76.561,76.521,0.4942926]
[1771939776447,0.4813806,76.561,76.531,0.4942926]
[1771939781650,0.4813806,76.561,76.533,0.4942926]
[1771939781850,0.4813806,76.56,76.533,0.4942926]
[1771939784430,13.0618216,76.559,76.533,0.4942926]
[1771939784635,0.4813806,76.558,76.535,0.4942926]
[1771939785037,0.4813806,76.558,76.531,13.06659302]
[1771939785360,0.4813806,76.549,76.515,0.4942926]
[1771939786157,0.4813806,76.549,76.515,13.56352265]
[1771939786454,0.4813806,76.549,76.516,0.4942926]
[1771939787157,0.4813806,76.547,76.518,0.4942926]
[1771939787757,0.4813806,76.547,76.52,5.0508831]
[1771939787934,0.4813806,76.547,76.517,13.0689912]
[1771939787935,13.5432022,76.559,76.531,0.4942926]
[1771939788142,0.4813806,76.577,76.541,0.4942926]
[1771939789453,5.0508831,76.58,76.541,0.4942926]
[1771939789454,0.4813806,76.575,76.541,0.4942926]
[1771939793557,45.70742026,76.574,76.541,0.4942926]
[1771939793759,0.4813806,76.573,76.541,0.4942926]
[1771939794148,0.4813806,76.569,76.533,0.4942926]
[1771939795760,0.49792277,76.559,76.533,0.4942926]
[1771939796859,0.49792277,76.557,76.533,0.4942926]
[1771939800367,0.49792277,76.555,76.533,0.4942926]
[1771939801449,0.49792277,76.549,76.523,13.06790498]
[1771939801650,0.49792277,76.549,76.524,0.47312671]
[1771939802558,13.06287291,76.553,76.526,0.47312671]
[1771939802967,13.06287291,76.553,76.531,0.47312671]
[1771939804058,13.06020798,76.569,76.541,0.47312671]
[1771939804247,0.49792277,76.578,76.551,0.47312671]
[1771939804976,0.49792277,76.581,76.551,0.47312671]
[1771939805266,0.49792277,76.587,76.553,0.47312671]
[1771939806672,0.49792277,76.588,76.561,0.47312671]
[1771939807572,32.63801108,76.598,76.555,0.47312671]
[1771939807573,0.49792277,76.586,76.555,0.47312671]
[1771939808154,0.49792277,76.586,76.553,13.06284534]
[1771939808155,0.49792277,76.586,76.561,0.47312671]
[1771939808875,0.49792277,76.592,76.571,0.47312671]
[1771939809075,0.49792277,76.592,76.565,0.47312671]
[1771939810366,13.05636432,76.591,76.571,0.47312671]
[1771939810562,0.49792277,76.592,76.571,0.47312671]
[1771939810764,65.25885525,76.618,76.566,13.06062743]
[1771939810765,0.49792277,76.612,76.581,0.47312671]
[1771939810954,0.49792277,76.609,76.566,13.06062743]
[1771939811159,0.49792277,76.609,76.57,5.0508831]
[1771939811360,0.49792277,76.609,76.571,0.47312671]
[1771939812557,0.49792277,76.607,76.573,0.47312671]
[1771939814172,52.19897838,76.63,76.572,13.05960403]
[1771939814173,0.49792277,76.638,76.591,0.47312671]
[1771939814379,0.49792277,76.619,76.581,0.47312671]
[1771939814562,0.49792277,76.617,76.59,5.0508831]
[1771939814962,0.49792277,76.617,76.59,5.52400981]
[1771939815682,0.49792277,76.617,76.591,0.47312671]
[1771939816887,13.05132421,76.621,76.601,0.47312671]
[1771939817182,0.49792277,76.634,76.611,0.47312671]
[1771939817361,0.49792277,76.634,76.611,0.05176]
[1771939817564,0.49792277,76.634,76.61,5.0508831]
[1771939818478,13.04920856,76.633,76.61,5.0508831]
[1771939818675,0.49792277,76.632,76.61,5.0508831]
[1771939818878,0.49792277,76.632,76.6,18.10555403]
[1771939819362,0.49792277,76.632,76.6,5.0508831]
[1771939819563,0.49792277,76.629,76.591,0.27863329]
[1771939819862,0.49792277,76.629,76.592,0.27863329]
[1771939820168,0.49792277,76.629,76.6,5.0508831]
[1771939821571,0.49792277,76.619,76.584,0.27863329]
[1771939822383,0.49792277,76.619,76.59,5.0508831]
[1771939822553,0.49792277,76.619,76.584,0.27863329]
[1771939824686,0.49761731,76.617,76.591,0.27863329]
[1771939824862,13.05176329,76.618,76.591,0.27863329]
[1771939825379,45.68117152,76.618,76.591,0.27863329]
[1771939825578,13.05176329,76.618,76.6,5.0508831]
[1771939825874,13.05122122,76.622,76.611,0.27863329]
[1771939826260,13.05122122,76.622,76.61,5.0508831]
[1771939826461,0.4787567,76.629,76.61,5.0508831]
[1771939826677,13.52694365,76.639,76.62,5.0508831]
[1771939827062,0.4787567,76.638,76.62,5.0508831]
[1771939827766,0.2,76.64,76.621,0.27863329]
[1771939827978,13.04572789,76.654,76.632,0.07863329]
[1771939828157,13.04572789,76.654,76.64,5.0508831]
[1771939828362,13.04478273,76.659,76.64,5.0508831]
[1771939828679,0.4787567,76.658,76.638,0.07863329]
[1771939828881,0.4787567,76.656,76.631,13.12818242]
[1771939829263,0.4787567,76.656,76.616,0.72092708]
[1771939829264,0.4787567,76.656,76.62,5.0508831]
[1771939829979,0.4787567,76.656,76.621,0.07863329]
[1771939830671,0.4787567,76.654,76.621,0.07863329]
[1771939831687,0.4787567,76.654,76.601,45.69130951]
[1771939831688,0.4787567,76.654,76.63,5.03577797]
[1771939831879,0.4787567,76.654,76.631,0.07863329]
[1771939832394,0.4787567,76.658,76.64,5.03577797]
[1771939832690,0.4787567,76.658,76.631,0.07863329]
[1771939833267,13.52387978,76.657,76.631,0.07863329]
[1771939833468,0.4787567,76.656,76.631,0.07863329]
[1771939834187,0.4787567,76.656,76.632,0.07863329]
[1771939839192,0.4787567,76.655,76.632,0.07863329]
[1771939841479,0.2,76.66,76.641,0.07863329]
[1771939841885,13.24478144,76.66,76.641,0.07863329]
[1771939842397,13.72353814,76.66,76.641,0.07863329]
[1771939843576,13.24478144,76.66,76.641,0.07863329]
[1771939844677,0.4787567,76.659,76.63,5.03577797]
[1771939844998,0.4787567,76.659,76.631,13.04954913]
[1771939845693,0.4787567,76.659,76.631,13.12818242]
[1771939847890,0.4787567,76.657,76.604,0.07863329]
[1771939848091,0.4787567,76.649,76.611,0.07863329]
[1771939848602,0.4787567,76.629,76.591,0.07863329]
[1771939848805,0.4787567,76.619,76.58,5.03577797]
[1771939849480,0.4787567,76.619,76.579,0.07863329]
[1771939849804,0.4787567,76.609,76.579,0.07863329]
[1771939850808,0.4787567,76.609,76.572,0.07863329]
[1771939851187,5.03577797,76.6,76.571,13.05977458]
[1771939851402,0.4787567,76.599,76.564,13.06081337]
[1771939851785,0.4787567,76.589,76.556,13.06233345]
[1771939852306,0.4787567,76.587,76.555,0.07863329]
[1771939852803,0.4787567,76.579,76.55,13.16334911]
[1771939854204,0.4787567,76.577,76.55,0.1]
[1771939855198,0.4787567,76.577,76.551,0.07863329]
[1771939856602,0.4787567,76.577,76.56,5.03577797]
[1771939856780,0.4787567,76.577,76.552,0.07863329]
[1771939861402,0.46186006,76.576,76.552,0.07863329]
[1771939865908,0.46186006,76.593,76.57,5.03577797]
[1771939866201,0.46186006,76.593,76.571,0.07863329]
[1771939867110,0.46186006,76.609,76.571,0.07863329]
[1771939869807,13.053467,76.608,76.571,0.07863329]
[1771939870007,0.46186006,76.589,76.552,0.07863329]
[1771939873893,0.46186006,76.587,76.551,13.06318663]
[1771939875420,0.46186006,76.587,76.561,0.07863329]
[1771939875999,0.46186006,76.585,76.562,0.07863329]
[1771939876200,0.46186006,76.585,76.561,13.06148038]
[1771939876806,0.46186006,76.585,76.552,0.07863329]
[1771939878022,0.46186006,76.585,76.551,13.06318663]
[1771939878222,0.46186006,76.583,76.552,0.07863329]
[1771939878612,32.63694764,76.601,76.561,0.48468411]
[1771939878811,5.03577797,76.6,76.561,0.48468411]
[1771939879322,13.05500071,76.599,76.561,0.48468411]
[1771939880627,0.46186006,76.596,76.563,0.48468411]
[1771939883440,0.46186006,76.594,76.565,0.48468411]
[1771939886122,0.46412261,76.592,76.567,0.47450595]
[1771939890209,0.46412261,76.59,76.568,13.06028628]
[1771939891110,0.46412261,76.59,76.568,13.53479223]
[1771939891431,0.46412261,76.588,76.568,13.53479223]
[1771939891629,0.46412261,76.588,76.568,0.47450595]
[1771939892423,0.46412261,76.588,76.568,0.10597901]
[1771939894511,0.46412261,76.586,76.563,0.17196641]
[1771939896214,0.46412261,76.597,76.564,0.17196641]
[1771939896533,0.46412261,76.609,76.572,0.17196641]
[1771939897343,0.46412261,76.608,76.572,0.17196641]
[1771939898522,0.46412261,76.606,76.572,0.17196641]
[1771939898839,0.46412261,76.617,76.59,5.04392494]
[1771939899019,0.46412261,76.617,76.591,0.17196641]
[1771939900032,0.46412261,76.617,76.592,0.17196641]
[1771939901836,0.46412261,76.615,76.592,0.17196641]
[1771939905223,12.88013758,76.616,76.591,13.05636432]
[1771939905432,0.46412261,76.634,76.591,13.05636432]
[1771939905624,0.46412261,76.634,76.62,5.04392494]
[1771939907246,0.46412261,76.634,76.615,13.05216582]
[1771939907535,0.5,76.629,76.59,5.04392494]
[1771939907849,0.5,76.619,76.59,5.04392494]
[1771939908143,0.5,76.619,76.6,5.04392494]
[1771939909630,0.5,76.618,76.6,5.04392494]
[1771939910035,5.04392494,76.64,76.6,5.04392494]
[1771939910036,0.5,76.63,76.61,5.04392494]
[1771939910233,0.5,76.63,76.6,18.09860854]
[1771939911040,0.5,76.629,76.6,18.09860854]
[1771939911846,0.5,76.627,76.596,13.05545504]
[1771939912023,0.5,76.619,76.592,13.05614218]
[1771939915845,5.04392494,76.61,76.584,13.05740136]
[1771939916041,0.5,76.609,76.584,13.05740136]
[1771939917248,0.5,76.607,76.58,5.04392494]
[1771939920147,0.5,76.607,76.581,13.05806923]
[1771939920935,13.05380779,76.606,76.581,13.05806923]
[1771939921140,0.5,76.599,76.56,5.04392494]
[1771939921342,0.5,76.589,76.561,13.06148038]
[1771939921842,0.5,76.579,76.551,13.06318663]
[1771939922750,5.04392494,76.58,76.55,0.1]
[1771939922751,0.5,76.577,76.55,0.1]
[1771939923327,0.5,76.569,76.55,0.1]
[1771939924149,0.5,76.569,76.551,13.06318663]
[1771939924734,0.5,76.569,76.55,0.1]
[1771939925544,0.5,76.567,76.55,0.1]
[1771939927143,0.5,76.565,76.531,13.06660046]
[1771939927933,0.5,76.559,76.531,13.06660046]
[1771939930163,0.5,76.559,76.53,5.04392494]
[1771939931044,0.5,76.559,76.531,13.06660046]
[1771939932053,5.04392494,76.57,76.531,13.06660046]
[1771939932054,0.5,76.557,76.531,13.06660046]
[1771939932257,0.5,76.557,76.516,32.67289282]
[1771939932450,0.5,76.557,76.52,5.04392494]
[1771939933455,0.5,76.555,76.521,13.06830804]
[1771939935035,0.5,76.562,76.53,5.04392494]
[1771939935554,5.04392494,76.58,76.54,5.04392494]
[1771939935555,0.5,76.579,76.54,5.04392494]
[1771939936254,0.5,76.579,76.53,5.04392494]
[1771939936756,13.05875132,76.577,76.531,45.73310161]
[1771939937051,0.5,76.576,76.531,45.73310161]
[1771939938758,0.5,76.569,76.531,45.73310161]
[1771939938946,0.5,76.567,76.531,45.73310161]
[1771939945661,0.5,76.565,76.531,45.73310161]
[1771939946242,0.5,76.565,76.531,13.06660046]
[1771939946243,5.04392494,76.56,76.531,13.06660046]
[1771939946442,0.5,76.559,76.531,13.06660046]
[1771939949165,0.5,76.557,76.522,13.06813288]
[1771939950757,0.5,76.557,76.53,5.04392494]
[1771939951157,0.5,76.557,76.531,13.06660046]
[1771939951358,0.5,76.556,76.531,13.06660046]
[1771939955765,0.5,76.556,76.531,45.73310161]
[1771939958496,0.5,76.554,76.53,5.04722405]
[1771939958774,0.5,76.554,76.531,13.06660046]
[1771939961575,5.04722405,76.55,76.526,13.06736797]
[1771939961869,0.5,76.549,76.516,13.069162]
[1771939963577,45.72294507,76.548,76.513,0.2]
[1771939963786,45.72294507,76.548,76.511,13.07001607]
[1771939963787,45.72294507,76.548,76.461,103.5]
[1771939963973,45.72294507,76.548,76.103,163.8]
[1771939963974,5.04722405,76.49,76.41,20.92844824]
[1771939964275,5.04722405,76.49,76.41,15.88122419]
[1771939964276,7.02241749,76.467,76.41,15.88122419]
[1771939964457,5.04722405,76.5,76.41,15.88122419]
[1771939964659,5.04722405,76.47,76.421,0.2]
[1771939965673,0.47410997,76.467,76.421,0.2]
[1771939965877,0.47410997,76.459,76.421,0.2]
[1771939966371,0.47410997,76.459,76.414,0.2]
[1771939966677,0.47410997,76.459,76.42,5.04722405]
[1771939967187,0.47410997,76.459,76.414,0.2]
[1771939967395,0.47410997,76.449,76.411,0.2]
[1771939967672,0.47410997,76.447,76.42,5.04722405]
[1771939967876,212.02,95.0,76.44,5.04722405]
[1771939968175,5.04722405,76.47,76.431,0.4680554]
[1771939968560,0.2,76.459,76.431,0.4680554]
[1771939969084,0.2,76.459,76.44,5.04722405]
[1771939969554,0.2,76.449,76.44,5.04722405]
[1771939970166,0.2,76.449,76.437,0.4680554]
[1771939970374,0.2,76.439,76.437,0.4680554]
[1771939970560,0.2,76.449,76.431,0.4680554]
[1771939970955,13.27901904,76.459,76.431,0.4680554]
[1771939970956,0.47410997,76.458,76.44,5.04722405]
[1771939971267,0.47410997,76.449,76.41,15.88122419]
[1771939971575,0.47410997,76.429,76.41,20.92844824]
[1771939971803,0.47410997,76.429,76.41,15.88122419]
[1771939971804,0.47410997,76.428,76.41,15.88122419]
[1771939973162,0.47410997,76.428,76.382,0.4680554]
[1771939973510,0.47410997,76.428,76.391,0.4680554]
[1771939973864,5.04722405,76.42,76.391,0.4680554]
[1771939974064,0.32589003,76.421,76.391,0.4680554]
[1771939974582,5.04722405,76.42,76.391,0.4680554]
[1771939974879,0.32589003,76.419,76.391,0.4680554]
[1771939975070,5.04722405,76.42,76.391,0.4680554]
[1771939975071,0.32589003,76.42,76.391,0.4680554]
[1771939975871,0.32589003,76.424,76.392,0.45401427]
[1771939976184,0.32589003,76.424,76.353,52.38759854]
[1771939976185,0.32589003,76.424,76.074,73.17878826]
[1771939976389,0.32589003,76.389,76.305,52.42088929]
[1771939976683,0.32589003,76.389,76.286,58.92]
[1771939976684,0.32589003,76.319,76.205,58.92]
[1771939976889,6.844,76.36,76.243,13.11590342]
[1771939977184,12.66445249,76.26,76.2,0.2390544]
[1771939977386,12.66445249,76.3,76.2,0.2390544]
[1771939977589,8.41497348,76.34,76.2,0.2390544]
[1771939977791,58.92,76.359,76.186,0.5]
[1771939977792,5.8356378,76.299,76.186,0.5]
[1771939977980,5.8356378,76.299,76.134,13.13458966]
[1771939977981,12.66445249,76.2,76.134,13.13458966]
[1771939978181,0.46276434,76.199,76.112,12.63853268]
[1771939978503,0.46276434,76.199,76.096,52.56496729]
[1771939978504,0.26276434,76.159,76.076,11.55818315]
[1771939978701,12.66445249,76.17,76.092,52.56794406]
[1771939978982,12.66445249,76.23,76.121,0.48138217]
[1771939978983,12.66445249,76.15,76.121,0.48138217]
[1771939979186,12.66445249,76.23,76.075,52.57908189]
[1771939979369,13.14198601,76.25,76.093,0.48138217]
[1771939979570,12.66445249,76.23,76.131,0.48138217]
[1771939979981,255.80815698,76.229,76.141,0.48138217]
[1771939980179,255.80815698,76.229,76.092,151.13283917]
[1771939980180,255.80815698,76.229,76.161,0.48138217]
[1771939980382,45.91428458,76.229,76.161,0.48138217]
[1771939980575,13.11640588,76.241,76.181,0.48138217]
[1771939980776,13.11640588,76.241,76.18,12.66445249]
[1771939980777,0.05507969,76.251,76.191,0.48138217]
[1771939981018,0.06383955,76.249,76.093,0.48138217]
[1771939981165,0.06383955,76.242,76.191,0.48138217]
[1771939981367,0.06383955,76.249,76.16,12.66445249]
[1771939981575,0.06383955,76.249,76.171,0.48138217]
[1771939981761,0.06383955,76.264,76.17,12.66445249]
[1771939981966,0.06383955,76.264,76.173,0.48138217]
[1771939982183,0.07250394,76.239,76.182,0.48138217]
[1771939982393,0.07250394,76.219,76.173,0.48138217]
[1771939982785,52.44053655,76.277,76.171,13.12830787]
[1771939982786,13.18106907,76.286,76.171,118.15515535]
[1771939982981,0.08106489,76.239,76.196,0.48138217]
[1771939983381,0.08106489,76.239,76.2,12.66445249]
[1771939983568,0.08106489,76.285,76.201,0.48138217]
[1771939983885,32.76142287,76.31,76.201,0.48138217]
[1771939983886,0.08953719,76.278,76.24,12.66445249]
[1771939984092,0.08953719,76.278,76.25,12.66445249]
[1771939984393,12.66445249,76.33,76.28,12.66445249]
[1771939984593,13.09431837,76.369,76.29,12.66445249]
[1771939984794,12.66445249,76.35,76.29,0.52615076]
[1771939985005,117.80413098,76.398,76.31,12.66445249]
[1771939985205,98.17010915,76.398,76.31,12.66445249]
[1771939985504,13.08934788,76.398,76.311,0.52615076]
[1771939985679,32.71432471,76.42,76.232,491.91940387]
[1771939985680,12.66445249,76.37,76.331,0.52615076]
[1771939985877,98.11745312,76.439,76.33,12.66445249]
[1771939986073,98.11745312,76.439,76.331,13.10083714]
[1771939986074,12.66445249,76.39,76.331,13.10083714]
[1771939986298,150.44676145,76.439,76.332,0.52615076]
[1771939986593,12.66445249,76.39,76.341,0.52615076]
[1771939986897,98.11745312,76.439,76.32,25.76706106]
[1771939986898,0.02504053,76.359,76.32,25.76706106]
[1771939987100,0.02504053,76.349,76.32,12.66445249]
[1771939987282,255.10537811,76.439,76.34,12.66445249]
[1771939987596,12.66445249,76.39,76.35,12.66445249]
[1771939987770,12.66445249,76.438,76.329,0.53867103]
[1771939987972,12.66445249,76.36,76.309,0.53867103]
[1771939988178,13.08680807,76.413,76.341,0.53867103]
[1771939988493,12.66445249,76.37,76.33,12.66445249]
[1771939988695,12.66445249,76.37,76.321,0.53867103]
[1771939988993,12.66445249,76.37,76.331,0.53867103]
[1771939989198,32.70986734,76.43,76.32,12.66445249]
[1771939989390,12.66445249,76.35,76.307,0.53867103]
[1771939989591,12.66445249,76.34,76.31,0.53867103]
[1771939989783,12.66445249,76.35,76.311,0.53867103]
[1771939990201,52.34143236,76.422,76.313,0.53867103]
[1771939990382,0.02427422,76.368,76.331,0.53867103]
[1771939990705,0.02427422,76.379,76.341,0.53867103]
[1771939990884,12.66445249,76.39,76.35,13.20312352]
[1771939991085,12.69662732,76.39,76.36,12.66445249]
[1771939991389,0.03217483,76.419,76.371,0.53867103]
[1771939991587,12.66445249,76.42,76.381,0.53867103]
[1771939991787,52.29245145,76.493,76.312,478.29961207]
[1771939991788,0.03217483,76.441,76.391,0.53867103]
[1771939991985,0.03997894,76.458,76.411,0.53867103]
[1771939992186,59.02,76.49,76.413,0.53867103]
[1771939992187,0.03997894,76.45,76.413,0.53867103]
[1771939992403,0.03997894,76.449,76.402,0.53867103]
[1771939992696,13.27901339,76.459,76.402,0.53867103]
[1771939992697,0.03997894,76.439,76.403,13.08849128]
[1771939992899,0.04770093,76.439,76.4,12.66445249]
[1771939993204,0.04770093,76.439,76.396,13.08959984]
[1771939993397,12.66445249,76.43,76.396,13.08959984]
[1771939993697,0.04770093,76.439,76.4,12.66445249]
[1771939993883,0.04770093,76.439,76.4,0.53867103]
[1771939994082,0.04770093,76.439,76.401,13.08883391]
[1771939994286,0.04770093,76.439,76.401,13.62750494]
[1771939995002,12.72730926,76.45,76.411,0.53867103]
[1771939995403,0.06285677,76.449,76.402,0.53867103]
[1771939995711,0.06285677,76.449,76.401,13.08883391]
[1771939995712,1e-08,76.459,76.431,0.53867103]
[1771939995889,1e-08,76.459,76.451,0.53867103]
[1771939996405,1e-08,76.459,76.452,13.61877357]
[1771939996579,1e-08,76.459,76.453,0.53867103]
[1771939996779,1e-08,76.459,76.429,0.53867103]
[1771939997096,1e-08,76.459,76.411,0.53867103]
[1771939997279,12.74211562,76.45,76.411,0.53867103]
[1771939997484,1e-08,76.459,76.421,0.53867103]
[1771939997887,1e-08,76.459,76.403,150.5176498]
[1771939997888,12.66445249,76.44,76.404,0.53867103]
[1771939998203,0.08494124,76.439,76.381,52.36851139]
[1771939998389,12.74939373,76.45,76.401,0.53867103]
[1771939998701,12.66445249,76.45,76.411,0.53867103]
[1771939998908,12.66445249,76.44,76.411,0.53867103]
[1771939999083,12.66445249,76.44,76.389,32.72679715]
[1771939999084,12.66445249,76.44,76.401,0.53867103]
[1771939999288,12.66445249,76.45,76.411,0.53867103]
[1771940000005,12.66445249,76.44,76.411,0.53867103]
[1771940000201,12.66445249,76.44,76.412,13.08694969]
[1771940000706,0.09925231,76.453,76.413,0.53867103]
[1771940001015,1e-08,76.459,76.421,0.53867103]
[1771940001181,12.66445249,76.44,76.411,0.53867103]
[1771940001387,1e-08,76.459,76.43,12.66445249]
[1771940001686,1e-08,76.459,76.421,0.53867103]
[1771940002087,12.66445249,76.44,76.402,0.53867103]
[1771940002300,0.1132366,76.449,76.41,13.20312352]
[1771940002507,12.66445249,76.45,76.411,0.53867103]
[1771940002803,12.66445249,76.45,76.421,0.53867103]
[1771940003302,1e-08,76.459,76.421,0.53867103]